Cogmind - Beta 15 --- EXPLORER MODE // 2025.05.12 @ 18:05:56 // Winter2019/RPGLIKE Player: Apathy Deity Result: Destroyed by M Guard with Hellfire Missile Launcher Performance ------------- Evolutions (9) 4500 Regions Visited (19) 3800 Robots Destroyed (722) 3610 Value Destroyed (44765) 44765 Prototype IDs (49) 980 Alien Tech Used (4) 800 Bonus (36930) 36930 TOTAL SCORE: 95385 Bonus ------- Triggered High Security 500 High Alert Combat Kills 23294 Follower Combat Kills 649 Met Warlord at Base 500 MAIN.C Attacked Warlord 500 Warlord Defense Kills 1132 Found Hidden Lab 3000 Met Warlord at Research 2000 Invited to Help at Command 2000 Pursued by Intercept 1500 Met Warlord at Command 2000 Friendly Fire -145 Cogmind --------- Core Integrity 0/1850 Matter 300/300 Energy 31/632 System Corruption 7% Temperature Cool (0) Movement Walking (95) Location -1/Command Parts ------- > --- POWER (2) -------- Vortex-Fission Reactor > --- PROPULSION (4) --- Centrium-Biometal Exoskeleton > --- UTILITY (14) ----- Armored Scrap Engine Advanced Cooling System Experimental Core Analyzer Experimental Core Analyzer Experimental Armor Integrity Analyzer Improved Particle Charger Quantum Capacitor Advanced Transmission Jammer Experimental Reaction Control System Graphene Brace AEGIS Remote Shield > --- WEAPON (5) ------- Warp Directed Phase Construct/C > --- INVENTORY (12) --- Improved Weapon Cycler Transdimensional Reconstructor Vortex Rifle (35) Vortex Rifle (35) Vortex Rail (40) Enhanced Nova Cannon Omega Cannon Peak State ------------ > --- POWER ------------ Vortex-Fission Reactor > --- PROPULSION ------- Centrium-Biometal Exoskeleton > --- UTILITY ---------- Armored Scrap Engine Advanced Cooling System Experimental Core Analyzer Experimental Armor Integrity Analyzer Improved Particle Charger Quantum Capacitor Advanced Transmission Jammer Experimental Reaction Control System Graphene Brace AEGIS Remote Shield Advanced System Restoration Module > --- WEAPON ----------- Sigix Terminator Warp Directed Phase Construct/C > --- INVENTORY -------- Protomatter Improved Weapon Cycler Transdimensional Reconstructor Vortex Rifle Vortex Rifle Vortex Rail Enhanced Nova Cannon Omega Cannon [Rating: 214] Favorites ----------- Power Constructs Engine Cooled Deuterium Engine Power Core Light Nuclear Core Reactor Constructs Propulsion Constructs Treads Improved Treads Leg Constructs Flight Unit Improved VTOL Module Utility Armored Scrap Engine Device Armored Scrap Engine Storage Compact Battery Processor Experimental Armor Integrity Analyzer Hackware Hacking Suite Protection Propulsion Shielding Weapon Enhanced Autogun Energy Gun Enhanced Quantum Rifle Energy Cannon Ion Cannon Ballistic Gun Enhanced Autogun Ballistic Cannon Constructs Launcher Guided EMP Blaster Special Weapon RU-N14's Throwing Claymores v3 Impact Weapon Heavy Flail Build | -11 -10 -10 -8 -7 -7 -7 -5 -5 -5 -4 -4 -4 -4 -3 -3 -2 -2 -1 -1 ------- Run | Yrd Mat Sub Mat Fac Sto Rec Fac Upp War Pro Fac Arm Lab Res Qua Res Tes Acc Com Slots Evolved 21 | 3 . . 5 . 2 2 2 . 1 . 1 1 . . . 1 1 . 2 Power 1 | . . . 1 . . . . . . . . . . . . . . . . Propulsion 3 | 1 . . 2 . . . . . . . . . . . . . . . . Utility 13 | 1 . . 2 . . 2 2 . 1 . 1 1 . . . 1 1 . 1 Weapon 4 | 1 . . . . 2 . . . . . . . . . . . . . 1 Parts Attached 109 | 7 1 7 22 7 17 3 9 . 6 4 6 4 4 . 1 8 2 . 1 Power 10 | 1 1 . 2 1 4 . 1 . . . . . . . . . . . . Engine 6 | 1 1 . . . 3 . 1 . . . . . . . . . . . . Core 4 | . . . 2 1 1 . . . . . . . . . . . . . . Reactor . | . . . . . . . . . . . . . . . . . . . . Propulsion 16 | 2 . . 8 . 6 . . . . . . . . . . . . . . Treads 7 | . . . 2 . 5 . . . . . . . . . . . . . . Leg 4 | 2 . . 2 . . . . . . . . . . . . . . . . Wheel . | . . . . . . . . . . . . . . . . . . . . Hover . | . . . . . . . . . . . . . . . . . . . . Flight 5 | . . . 4 . 1 . . . . . . . . . . . . . . Utility 54 | 2 . 3 8 3 5 3 7 . 2 4 3 4 1 . . 6 2 . 1 Device 32 | 1 . 2 2 3 4 1 3 . 1 4 2 4 . . . 3 2 . . Storage 1 | . . . . . . 1 . . . . . . . . . . . . . Processor 10 | . . . 1 . . 1 2 . 1 . 1 . . . . 3 . . 1 Hackware 3 | . . . 1 . . . 2 . . . . . . . . . . . . Protection 8 | 1 . 1 4 . 1 . . . . . . . 1 . . . . . . Artifact . | . . . . . . . . . . . . . . . . . . . . Weapon 29 | 2 . 4 4 3 2 . 1 . 4 . 3 . 3 . 1 2 . . . Energy Gun 9 | 1 . 2 2 . . . . . . . 2 . 1 . . 1 . . . Energy Cannon 3 | . . . . 1 . . . . . . 1 . 1 . . . . . . Ballistic Gun 9 | 1 . 2 2 1 2 . . . . . . . . . . 1 . . . Ballistic Cannon . | . . . . . . . . . . . . . . . . . . . . Launcher 2 | . . . . . . . . . 1 . . . . . 1 . . . . Special Weapon 4 | . . . . . . . . . 3 . . . 1 . . . . . . Impact Weapon 2 | . . . . 1 . . 1 . . . . . . . . . . . . Slashing Weapon . | . . . . . . . . . . . . . . . . . . . . Piercing Weapon . | . . . . . . . . . . . . . . . . . . . . Special Melee Weapon . | . . . . . . . . . . . . . . . . . . . . Unidentified Prototypes 29 | . . . 1 . 2 1 1 . 4 2 3 . 6 . 1 6 2 . . Corrupted Parts 4 | . . . . . . . . . . 2 1 . . . . 1 . . . System Corruption 9 | . . . . . . . . . . 7 1 . . . . 1 . . . Parts Lost 4 | . . 1 1 1 . . . . . . . . . . . . . . 1 Power . | . . . . . . . . . . . . . . . . . . . . Propulsion . | . . . . . . . . . . . . . . . . . . . . Utility 4 | . . 1 1 1 . . . . . . . . . . . . . . 1 Weapon . | . . . . . . . . . . . . . . . . . . . . Highest Loss Streak 1 | . . 1 1 1 . . . . . . . . . . . . . . 1 To Critical Strikes . | . . . . . . . . . . . . . . . . . . . . Average Backups 7 | 1 4 4 6 6 6 5 7 6 8 10 8 8 8 7 8 8 8 8 7 Power . | . 1 . . 1 . . . . . . . 1 1 1 . . . . . Propulsion . | . . . . . . 1 1 . 1 2 2 2 2 . . . . . . Utility 1 | . 2 1 1 . . . 2 4 3 4 2 . . 3 4 2 1 1 1 Weapon 3 | . 1 3 2 4 4 3 2 2 3 3 3 4 4 2 2 4 5 6 5 Tool/Special . | . . . . . . . . . . . . . . . . . . . . Unused Backups 50 | . . 4 4 3 2 1 11 3 2 . 2 2 4 3 1 2 1 . 5 Power 6 | . . 1 . . . . 1 1 . . . 2 . . 1 . . . . Propulsion 15 | . . . 2 1 . . 6 2 . . . . . 3 . 1 . . . Utility 9 | . . 1 . 1 . . 2 . 1 . . . . . . 1 1 . 2 Weapon 19 | . . 2 2 1 2 1 2 . 1 . 2 . 4 . . . . . 2 Tool/Special 1 | . . . . . . . . . . . . . . . . . . . 1 Average Slot Usage (%) 71 | . 100 98 90 97 98 92 72 60 63 62 64 61 61 61 63 59 63 60 58 Engine 2 | . 14 14 5 . 6 5 5 2 . . . . . . . . . . . Core 2 | . . . 8 16 7 6 . 3 3 . . . . . . . . . . Reactor 2 | . . . . . . . . . 1 5 5 4 4 4 4 4 4 4 4 Treads 3 | . . . 1 . 5 24 9 . . . . . . . . . . . . Leg 5 | . 28 28 27 . . . . 1 5 5 5 4 4 3 . . 1 4 4 Flight 2 | . . . 1 33 23 . 2 3 . . . . . . . . . . . Device 29 | . 14 15 8 24 21 20 19 27 26 28 34 39 42 42 42 39 38 39 37 Processor 5 | . . . . . . . 9 11 13 12 10 6 4 4 4 4 8 8 8 Protection 2 | . 14 11 16 . 5 6 . . . . . . . . . . . . . Energy Gun 1 | . 14 13 5 . . . . . . 5 1 . . . . . 2 . . Energy Cannon 1 | . . . . 2 . . . . . . . 4 4 4 4 4 2 . . Ballistic Gun 6 | . 14 14 11 6 18 19 16 9 3 . . . . . . . . . . Impact Weapon 1 | . . . . 7 7 6 1 . . . . . . . . . . . . Peak Build Rating 214 | 7 7 10 36 44 54 61 87 91 134 140 154 153 157 151 180 187 196 188 214 Average Rating 114 | 5 7 8 22 41 48 47 68 84 116 133 145 140 146 149 166 164 185 188 187 On Entrance 98 | . 7 7 10 35 41 43 56 83 87 132 139 149 145 150 150 180 176 188 188 Naked Turns . | . . . . . . . . . . . . . . . . . . . . Heaviest Build 105 | 10 12 18 27 27 38 37 34 40 64 50 67 67 73 73 93 97 93 85 105 Greatest Support 148 | 20 20 20 52 31 105 99 79 79 79 79 79 79 79 148 148 148 148 137 137 Greatest Overweight (x) 7 | . . . 1 . 1 . 1 1 . . . . . . 7 . 7 . . Average Overweight (x) . | . . . . . . . . . . . . . . . . . . . . Largest Inventory Capacity 12 | 5 5 5 7 7 8 8 10 10 10 10 10 10 11 11 11 11 11 11 12 Average Capacity 9 | 5 5 5 6 7 7 8 9 10 10 10 10 10 10 11 11 11 11 11 11 Most Carried 12 | 4 5 5 7 7 8 8 10 10 10 10 10 10 11 9 11 11 11 11 12 Average Carried 8 | 1 4 4 6 6 7 7 9 8 9 9 9 9 8 8 10 10 10 11 9 Final Capacity 12 | 5 5 5 7 7 8 8 10 10 10 10 10 10 11 11 11 11 11 11 12 Final Carried 11 | 4 5 4 6 7 8 8 10 8 10 9 10 10 8 9 10 11 11 11 8 Scrap Engine Consumption 77 | . . . . . . 9 23 11 9 1 4 4 5 6 . . 5 . . Constructs Created 3 | . . . . . . 1 2 . . . . . . . . . . . . Constructs Modified 33 | . . . . . . 1 8 8 5 . 2 1 3 3 . . 2 . . Class Distribution -------------------- 33% | Hauler-Construct 20% | Hauler-Gunner 11% | Commander-Tank 10% | Hacker-Mutant 9% | Hauler-Mutant 7% | Hacker-Gunner 5% | Hacker-Sprinter Dominant Class ---------------- Hacker-Mutant | -10/Materials Hacker-Mutant | -10/Subcaves Hacker-Mutant | -8/Materials Hacker-Sprinter | -7/Factory Hacker-Sprinter | -7/Storage Commander-Tank | -7/Recycling Hacker-Gunner | -5/Factory Hauler-Mutant | -5/Upper Caves Hauler-Construct | -5/Warlord Hauler-Construct | -4/Proximity Caves Hauler-Gunner | -4/Factory Hauler-Construct | -4/Armory Hauler-Construct | -4/Lab Hauler-Construct | -3/Research Hauler-Construct | -3/Quarantine Hauler-Mutant | -2/Research Hauler-Gunner | -2/Testing Hauler-Construct | -1/Access Hauler-Gunner | -1/Command Resources | -11 -10 -10 -8 -7 -7 -7 -5 -5 -5 -4 -4 -4 -4 -3 -3 -2 -2 -1 -1 ----------- Run | Yrd Mat Sub Mat Fac Sto Rec Fac Upp War Pro Fac Arm Lab Res Qua Res Tes Acc Com Matter Collected 4471 | 264 24 145 444 91 866 371 1186 156 210 20 278 100 90 10 20 113 47 . 36 Remotely . | . . . . . . . . . . . . . . . . . . . . Salvage Created 23893 | 82 24 518 726 277 1379 416 2209 886 348 70 1060 873 125 344 1084 1938 1955 1119 8460 Parts 1011 | 1 1 36 31 18 71 24 91 23 13 2 48 50 5 24 48 76 88 45 316 Haulers Intercepted 12 | . . . 1 . 3 . 1 . . . 3 . . . . 4 . . . Recyclers Shooed 10 | . . . 2 . . . 8 . . . . . . . . . . . . Parts Field Recycled . | . . . . . . . . . . . . . . . . . . . . Retrieved Matter . | . . . . . . . . . . . . . . . . . . . . Parts Self-Destructed . | . . . . . . . . . . . . . . . . . . . . Prevented . | . . . . . . . . . . . . . . . . . . . . Kills | -11 -10 -10 -8 -7 -7 -7 -5 -5 -5 -4 -4 -4 -4 -3 -3 -2 -2 -1 -1 ------- Run | Yrd Mat Sub Mat Fac Sto Rec Fac Upp War Pro Fac Arm Lab Res Qua Res Tes Acc Com Combat Hostiles Destroyed 617 | . . 13 7 4 21 12 20 14 8 1 28 29 4 4 14 34 31 25 348 Melee 4 | . . . . 1 2 . . . . . . 1 . . . . . . . Guns 97 | . . 13 7 2 19 12 20 14 2 1 7 . . . . . . . . Cannons 373 | . . . . . . . . . . . 21 28 4 4 14 33 31 25 213 AOE 139 | . . . . . . . . . 4 . . . . . . . . . 135 Classes Destroyed 29 | 1 1 2 5 2 2 3 1 . 2 . . 2 . . 1 1 . 1 5 Worker 20 | . . . . 5 1 . 2 . . . 1 . . 2 2 . 4 . 3 Builder 11 | . . . 1 4 2 . 1 . . . . . . 1 1 . 1 . . Tunneler 1 | . . . 1 . . . . . . . . . . . . . . . . Hauler 12 | . . . 1 . 3 . 1 . . . 3 . . . . 4 . . . Recycler 14 | 1 . . 2 . 1 . 6 . . . . . . . 1 . 1 . 2 Carrier 20 | . . . . . . . . . . . . . . . . . . . 20 Mechanic 5 | . . . . . . . 1 . . . . 1 . . 1 . 1 . 1 Operator 7 | . . . 1 . . . . . . . . 1 . . 1 1 1 . 2 Drone 1 | . . . . . . . . . . . . . . . . . . . 1 Watcher 37 | . 1 . 1 2 2 . 6 . . . 3 4 . . 2 4 2 5 5 Swarmer 64 | . . . . 2 2 . 3 7 . . 3 . . . . 4 1 3 39 Cutter 9 | . . . . . . . . . . . . . . . . . . . 9 Saboteur 13 | . . . . . . . . . . . . 2 . . . . . . 11 Grunt 162 | . . . 4 2 8 1 7 4 4 . 16 3 3 . 5 6 7 8 84 Brawler 27 | . . . . . 1 . . 2 1 . . . . . . . 1 1 21 Duelist 26 | . . . . . . 2 . . . . . 3 . . . . . 1 20 Protector 12 | . . . . . . 1 . . . . . 1 . . . . . . 10 Sentry 40 | . . 1 3 . 9 1 4 1 . . 4 7 . . 3 3 . . 4 Demolisher 10 | . . . . . . . . . . . . . . . . . . . 10 Specialist 26 | . . . . . . . . . . . . 2 . . . . 3 . 21 Hunter 80 | . . . . . . 1 4 . . 1 1 5 . . 2 7 . 8 51 Programmer 102 | . . . . . 1 4 2 . . . 4 6 . 3 3 7 15 3 54 Behemoth 5 | . . . . . . . . . 1 . . . . 1 . 1 . . 2 Tracker 4 | . . . . . . . . . . . . . . . 1 1 2 . . Combat Programmer 5 | . . . . . . . . . . . . . . . 1 . 2 . 2 Striker 6 | . . . . . . . . . 2 . . . . . . 2 . . 2 Executioner 7 | . . . . . . . . . . . . . . . . 3 . . 4 Alpha 7 3 | . . . . . . . . . . . . . . . 1 . . . 2 Subdweller 14 | . . 12 . . . 2 . . . . . . . . . . . . . Thug 1 | . . . . . . . . . 1 . . . . . . . . . . Troll 1 | . . . . . . . . . . . . . . . . . . . 1 Hydra 1 | . . . . . . . . . . . . . . . . . . 1 . Best Kill Streak 164 | 1 1 3 3 9 13 7 7 9 4 1 6 6 3 3 6 7 9 12 164 Combat Bots Only 146 | . . 3 2 2 5 7 4 9 4 1 6 5 3 3 3 7 6 12 146 Max Kills in Single Turn 153 | 1 1 1 1 7 2 2 2 2 2 1 1 1 1 1 1 1 2 1 153 Gunslinging 1 | . . . . . 1 1 . 1 . . . . . . . . . . . Exploded 135 | . . . . . . . . . 2 . . . . . . . . . 135 Melee 1 | . . . . 1 1 . . . . . . 1 . . . . . . . Uniques/NPCs Destroyed 1 | . . . . . . . . . . . . . 1 . . . . . . A5 (-4/Lab) Combat | -11 -10 -10 -8 -7 -7 -7 -5 -5 -5 -4 -4 -4 -4 -3 -3 -2 -2 -1 -1 -------- Run | Yrd Mat Sub Mat Fac Sto Rec Fac Upp War Pro Fac Arm Lab Res Qua Res Tes Acc Com Hostile Shots Fired 2164 | . . 120 38 76 245 21 111 44 74 20 164 78 14 9 63 54 40 102 891 Missed 890 | . . 30 5 33 105 8 41 21 28 9 73 44 3 6 20 28 9 45 382 Hits 1274 | . . 90 33 43 140 13 70 23 46 11 91 34 11 3 43 26 31 57 509 Melee 10 | . . . . . . . . 2 . . . 1 . . . . . . 7 Projectile 1264 | . . 90 33 43 140 13 70 21 46 11 91 33 11 3 43 26 31 57 502 AOE 46 | . . 6 . . . . . . . . . 1 . . . . . . 39 Critical Strikes 47 | . . 1 . 1 1 . . 1 2 . 6 . . . 2 3 2 1 27 Actively Blocked 35 | . . . . . . . . . . . . . . . 2 3 2 1 27 Damage Taken 11703 | . . 1331 212 350 282 69 478 219 305 91 561 294 133 11 341 253 249 427 6097 Core 8949 | . . 985 129 278 202 48 369 170 227 69 416 224 104 8 263 194 183 324 4756 Absorbed by Shields 6161 | . . . 124 69 426 38 272 85 110 37 241 110 31 4 139 185 232 400 3658 Redirected to Core 7867 | . . 736 101 236 165 39 322 155 225 69 374 224 91 8 248 183 176 284 4231 Redirected to Shielding 16 | . . . 5 . 4 7 . . . . . . . . . . . . . Ignored by Resistances 11360 | . . 784 202 252 497 68 452 183 382 75 1207 245 98 9 297 248 259 488 5614 Regen/Repaired (Parts) 130 | . . . . . . . 12 8 4 . . . 104 . . . 2 . . Core Remaining (%) 85 | 100 . 36 64 . . 100 . . . 93 . . 100 . 95 . 98 . . Volleys Fired 1373 | 6 2 72 43 20 58 19 102 39 31 8 163 104 24 6 41 85 71 59 420 Largest 3 | 2 2 2 2 1 3 3 3 2 1 1 1 1 1 1 1 1 1 1 1 Hottest 252 | 70 70 90 90 60 75 75 121 96 71 50 84 84 252 84 84 84 126 126 126 Shots Fired 1856 | 12 4 133 62 20 174 58 304 78 31 8 163 104 24 6 41 85 71 59 419 Gun 893 | 12 4 133 62 14 174 58 300 75 19 6 36 . . . . . . . . Cannon 939 | . . . . 6 . . 4 3 . . 120 102 24 6 41 85 71 59 418 Launcher 24 | . . . . . . . . . 12 2 7 2 . . . . . . 1 Special . | . . . . . . . . . . . . . . . . . . . . Kinetic 813 | 6 2 70 49 14 174 58 274 39 5 . 120 2 . . . . . . . Thermal 964 | 6 2 63 13 6 . . 30 39 . . . 100 24 6 41 85 71 59 419 Explosive . | . . . . . . . . . . . . . . . . . . . . Electromagnetic 23 | . . . . . . . . . 12 2 7 2 . . . . . . . Entropic 56 | . . . . . . . . . 14 6 36 . . . . . . . . Robot Hit Streak 461 | 5 2 53 25 10 34 43 40 30 11 19 42 29 15 16 41 95 148 181 461 Robot Miss Streak 3 | 1 1 1 1 . 2 1 3 2 1 . 2 2 . . . . . . . Penetration Max 1 | . . . . . . . . . . . 1 . . . . . . . . Secondary Targets 16 | . . 3 1 . 3 3 3 3 . . . . . . . . . . . Max Gunslinging Chain 1 | . . 1 1 . 1 1 1 1 . . . . . . . . . . . Capacitor 132 | . . . . . . . . . . . . . . . . 85 47 . . Shots Hit Robots 1426 | 8 2 122 54 16 158 46 245 61 18 8 146 85 11 1 25 54 53 33 280 Core Hits 855 | 2 2 33 25 14 60 22 114 27 35 5 70 30 6 4 21 31 28 26 300 Critical Kills 3 | . . 1 . 1 1 . . . . . . . . . . . . . . Critical Parts Destroyed 5 | . . . 1 . . . 1 . 1 . 2 . . . . . . . . Critical Strikes 63 | 1 . 6 1 1 2 . 1 1 1 . 2 . . . 5 4 4 2 32 Burn 7 | 1 . 5 . . . . . 1 . . . . . . . . . . . Destroy 4 | . . 1 1 . 1 . 1 . . . . . . . . . . . . Blast 47 | . . . . . . . . . . . . . . . 5 4 4 2 32 Smash 2 | . . . . 1 1 . . . . . . . . . . . . . . Detonate 3 | . . . . . . . . . 1 . 2 . . . . . . . . Melee Attacks 63 | . . . . 36 23 1 . . 3 . . . . . . . . . . Impact 63 | . . . . 36 23 1 . . 3 . . . . . . . . . . Slashing . | . . . . . . . . . . . . . . . . . . . . Piercing . | . . . . . . . . . . . . . . . . . . . . Sneak Attacks 5 | . . . . 2 3 . . . . . . . . . . . . . . Combat Hostiles . | . . . . . . . . . . . . . . . . . . . . Follow-up Attacks . | . . . . . . . . . . . . . . . . . . . . Damage Inflicted 239286 | 87 34 1352 876 1053 3448 847 4198 1209 1806 270 6081 7217 1434 986 5569 11392 9822 7675 173930 Guns 12842 | 87 34 1352 872 153 2391 847 4133 1131 530 192 1120 . . . . . . . . Cannons 104747 | . . . . . . . 65 78 . . 4336 7107 1434 818 5569 11392 9740 7603 56605 Explosions 119798 | . . . . 464 . . . . 1276 78 545 110 . . . . . . 117325 Melee 1493 | . . . . 436 1057 . . . . . . . . . . . . . . Ramming 406 | . . . 4 . . . . . . . 80 . . 168 . . 82 72 . Kinetic 13416 | 37 8 586 696 153 2391 847 3741 477 82 . 4336 62 . . . . . . . Thermal 220158 | 50 26 766 176 . . . 457 732 331 . 89 7045 1434 818 5569 11392 9740 7603 173930 Explosive 464 | . . . . 464 . . . . . . . . . . . . . . . Electromagnetic 1589 | . . . . . . . . . 945 78 456 110 . . . . . . . Impact 1493 | . . . . 436 1057 . . . . . . . . . . . . . . Slashing . | . . . . . . . . . . . . . . . . . . . . Piercing . | . . . . . . . . . . . . . . . . . . . . Entropic 1760 | . . . . . . . . . 448 192 1120 . . . . . . . . Highest Corruption 7 | . . . . 2 1 2 . . . 7 2 1 1 . 1 1 1 1 7 Average Corruption 2 | . . . . 1 1 1 . . . 5 1 1 1 . 1 1 1 1 3 Corruption Purged 33 | . . . . 2 1 . . . . . 4 1 1 . 1 2 4 1 16 Corruption Blocked . | . . . . . . . . . . . . . . . . . . . . Effects 39 | . . . . 5 . 22 . . . 1 . . . . . . . . 11 Message Errors 7 | . . . . 1 . 3 . . . 1 . . . . . . . . 2 Matter Fused 8 | . . . . 2 . 4 . . . . . . . . . . . . 2 Heat Flow Errors 4 | . . . . . . 2 . . . . . . . . . . . . 2 Energy Discharges 5 | . . . . 1 . 3 . . . . . . . . . . . . 1 Data Loss (minor) 10 | . . . . 1 . 7 . . . . . . . . . . . . 2 Data Loss (major) 1 | . . . . . . . . . . . . . . . . . . . 1 Misfires 2 | . . . . . . 2 . . . . . . . . . . . . . Weapon Failures 2 | . . . . . . 1 . . . . . . . . . . . . 1 Overload Shots 7 | . . . . . . . . . . . . . 7 . . . . . . Overflow Damage 30023 | . . . . 144 106 . . . . . 348 1161 153 125 839 2435 2638 1417 20657 Projectiles 17405 | . . . . . . . . . . . 346 1161 153 102 839 2435 2596 1391 8382 Explosions 12281 | . . . . 6 . . . . . . . . . . . . . . 12275 Melee 337 | . . . . 138 106 . . . . . 2 . . 23 . . 42 26 . Knockbacks 39 | . . . . 2 1 . . . . . 34 . . 1 . . 1 . . Impact 6 | . . . . 2 1 . . . . . 1 . . 1 . . 1 . . Kinetic 28 | . . . . . . . . . . . 28 . . . . . . . . Secondary 5 | . . . . . . . . . . . 5 . . . . . . . . Self-Inflicted Damage 187 | . . . . 128 . . . . . . 18 . . . . . 41 . . Shots 5 | . . . . 2 . . . . . . 3 . . . . . . . . Rammed 1 | . . . . . . . . . . . . . . . . . 1 . . Targets Rammed 14 | . . . 1 . . . . . . . 3 . . 7 . . 1 2 . Kicked 13 | . . . 1 . . . . . . . 3 . . 7 . . . 2 . Crushed . | . . . . . . . . . . . . . . . . . . . . Highest Temperature 563 | 110 55 12 384 66 338 126 146 36 127 6 250 146 563 26 . 114 147 106 333 Average Temperature 64 | 46 29 5 134 22 73 61 20 11 28 3 73 52 177 17 . 23 41 52 54 Received Heat Transfer 1761 | . . 432 153 100 183 2 76 60 34 . 253 18 20 . 12 8 25 21 364 Effects 10 | . . . 5 . 3 . . . . . . . 2 . . . . . . Energy Bleed 4 | . . . 3 . 1 . . . . . . . . . . . . . . Interference 1 | . . . 1 . . . . . . . . . . . . . . . . Short Circuit 2 | . . . 1 . 1 . . . . . . . . . . . . . . Damage (minor) 1 | . . . . . 1 . . . . . . . . . . . . . . Damage (major) 2 | . . . . . . . . . . . . . 2 . . . . . . Siege Activations . | . . . . . . . . . . . . . . . . . . . . Martial Activations . | . . . . . . . . . . . . . . . . . . . . Shielding Activations . | . . . . . . . . . . . . . . . . . . . . Robots Disrupted 1 | . . . . . . . . . 1 . . . . . . . . . . Combat Hostiles 1 | . . . . . . . . . 1 . . . . . . . . . . Robots Corrupted 8 | . . . . 3 1 . . . 2 . . . . 1 . . 1 . . Combat Hostiles 3 | . . . . 1 . . . . 2 . . . . . . . . . . Parts Fried 15 | . . . . 6 3 . . . 1 . . . . 3 . . 2 . . Impact Corruptions 19 | . . . . 6 6 . . . . . 2 . . 2 . . 2 1 . Robots Melted 1 | . . . . . . . . . . . . . . . . 1 . . . Combat Hostiles 1 | . . . . . . . . . . . . . . . . 1 . . . Parts Melted 16 | 1 . 3 . . . 1 2 2 . . . 2 . . . . 4 . 1 Heat Transferred 33769 | 222 74 2135 322 . . . 1258 1258 250 . 50 4075 625 185 1406 2886 2294 1738 14991 Parts Sabotaged 2 | . . . . . . . . . . . . 2 . . . . . . . Parts Stolen . | . . . . . . . . . . . . . . . . . . . . Parts Stripped . | . . . . . . . . . . . . . . . . . . . . Power Chain Reactions 2 | . . . . . . . . . 2 . . . . . . . . . . Alert | -11 -10 -10 -8 -7 -7 -7 -5 -5 -5 -4 -4 -4 -4 -3 -3 -2 -2 -1 -1 ------- Run | Yrd Mat Sub Mat Fac Sto Rec Fac Upp War Pro Fac Arm Lab Res Qua Res Tes Acc Com Maximum Alert Level 5 | . . . . . 2 1 1 . . . 2 2 . . . 1 1 2 5 Low Security (%) 62 | 100 100 . 100 100 37 99 81 . . . 54 38 . 100 100 98 35 14 . Level 1 18 | . . . . . 39 . 18 . . . 45 53 . . . 1 64 15 15 Level 2 5 | . . . . . 22 . . . . . . 7 . . . . . 70 . Level 3 . | . . . . . . . . . . . . . . . . . . . . Level 4 . | . . . . . . . . . . . . . . . . . . . . Level 5 13 | . . . . . . . . . . . . . . . . . . . 84 High Security . | . . . . . . . . . . . . . . . . . . . . Max Security . | . . . . . . . . . . . . . . . . . . . . Peak Influence 579 | 5 7 . 70 165 449 202 350 . . . 408 426 . 55 98 205 318 579 292 Initial 350 | . 2 . . 1 54 98 350 . . . . 141 . . . 33 50 86 231 Average 134 | . . . 10 25 256 39 103 . . . 185 228 . 11 36 121 204 429 233 Influence Increases 19000 | 5 7 20 221 386 695 484 1121 331 176 71 970 1138 60 153 410 973 830 917 10032 Destroy 0b10 Robot/C 12520 | . . 20 140 80 420 220 480 300 160 40 580 680 60 80 280 680 620 540 7140 Destroy 0b10 Robot/NC 630 | 5 5 . 35 55 45 5 100 5 . 5 35 40 . 15 40 45 50 25 120 Destroy Leader 1400 | . 2 . 44 24 150 . 136 20 . 10 102 202 . 20 54 196 84 100 256 Allied During Kill 99 | . . . . . . 22 17 6 1 1 1 40 . . 1 . . 10 . Successful Hack 390 | . . . 2 64 14 10 6 . . . 18 74 . 21 25 . 44 60 52 Select Force Hacks 270 | . . . . . 60 210 . . . . . . . . . . . . . Disable Machine 72 | . . . . 8 4 . . . . . 8 12 . . 8 4 20 4 4 Anti-Garrison Action 150 | . . . . . . . . . . . . . . . . . . 150 . Destroy Structure 2069 | . . . . 35 2 17 32 . . . 46 30 . 2 2 18 12 28 1845 Advance Influence 350 | . . . . . . . 350 . . . . . . . . . . . . Partial Spotted 90 | . . . . 30 . . . . . . 30 15 . 15 . . . . . Lose Combat Pursuer 960 | . . . . 90 . . . . 15 15 150 45 . . . 30 . . 615 Influence Decreases 8957 | . 12 20 214 228 501 843 1121 331 136 111 577 1127 419 198 330 932 761 634 462 Entered New Map 1586 | . 3 . . 6 111 261 . . . 40 . 252 404 45 . 47 71 104 242 Time Decay 6851 | . 9 20 214 212 390 562 911 331 136 71 557 645 15 153 330 885 690 510 210 Lost Part 20 | . . . . 10 . . . . . . . . . . . . . . 10 Lost Ally 350 | . . . . . . 20 210 . . . 20 80 . . . . . 20 . Purge Threat 150 | . . . . . . . . . . . . 150 . . . . . . . Squads Dispatched 44 | . . . . 4 3 . 6 . . . 4 6 . 3 3 2 6 6 1 Investigation 9 | . . . . 4 2 . . . . . . . . 2 . . . 1 . Extermination 15 | . . . . . 1 . 4 . . . 1 3 . 1 1 . 2 2 . Reinforcement 10 | . . . . . . . 2 . . . 3 2 . . . . 1 2 . Assault 3 | . . . . . . . . . . . . 1 . . . . . 1 1 Garrison . | . . . . . . . . . . . . . . . . . . . . Intercept 7 | . . . . . . . . . . . . . . . 2 2 3 . . Searches Triggered . | . . . . . . . . . . . . . . . . . . . . Construction Impeded . | . . . . . . . . . . . . . . . . . . . . Haulers Reinforced 5 | . . . . . . . 2 . . . 3 . . . . . . . . Active Scanning Responses . | . . . . . . . . . . . . . . . . . . . . Cargo Convoy Interrupts . | . . . . . . . . . . . . . . . . . . . . Stealth | -11 -10 -10 -8 -7 -7 -7 -5 -5 -5 -4 -4 -4 -4 -3 -3 -2 -2 -1 -1 --------- Run | Yrd Mat Sub Mat Fac Sto Rec Fac Upp War Pro Fac Arm Lab Res Qua Res Tes Acc Com Distress Signals 28 | . 1 . . . 1 2 4 . 1 . 1 2 . . . 2 2 . 12 Communications Jammed 136 | . . . . . . . . . . . 15 43 . . . . . 3 75 Distress Signals 135 | . . . . . . . . . . . 15 43 . . . . . 3 74 Times Spotted 614 | . 2 15 14 19 22 10 37 14 34 3 44 35 4 4 17 36 27 28 249 Peak Tracking Total 18 | . 2 4 4 6 3 5 5 3 11 2 6 6 3 2 3 5 3 5 18 Tactical Retreats 34 | . . . . 3 . . . . 1 1 5 1 . . . 2 . . 21 Traps | -11 -10 -10 -8 -7 -7 -7 -5 -5 -5 -4 -4 -4 -4 -3 -3 -2 -2 -1 -1 ------- Run | Yrd Mat Sub Mat Fac Sto Rec Fac Upp War Pro Fac Arm Lab Res Qua Res Tes Acc Com Traps Triggered 7 | . . . 1 2 . . . . . . . 1 . 1 . . 1 . 1 Indirectly . | . . . . . . . . . . . . . . . . . . . . Trap Hack Attempts . | . . . . . . . . . . . . . . . . . . . . Triggered . | . . . . . . . . . . . . . . . . . . . . Disarmed . | . . . . . . . . . . . . . . . . . . . . Reprogrammed . | . . . . . . . . . . . . . . . . . . . . Reused . | . . . . . . . . . . . . . . . . . . . . Traps Extracted . | . . . . . . . . . . . . . . . . . . . . Installed . | . . . . . . . . . . . . . . . . . . . . Triggered . | . . . . . . . . . . . . . . . . . . . . Machines | -11 -10 -10 -8 -7 -7 -7 -5 -5 -5 -4 -4 -4 -4 -3 -3 -2 -2 -1 -1 ---------- Run | Yrd Mat Sub Mat Fac Sto Rec Fac Upp War Pro Fac Arm Lab Res Qua Res Tes Acc Com Machines Disabled 27 | . . . . 2 1 . . 1 2 . 2 3 5 . 2 1 5 2 1 Max in Single Turn 2 | . . . . 2 1 . . 1 1 . 1 1 1 . 1 1 1 1 1 Garrison Access 5 | . . . . 1 . . . . . . 1 . . . . 1 1 1 . Machines Repaired . | . . . . . . . . . . . . . . . . . . . . Machines Dismantled . | . . . . . . . . . . . . . . . . . . . . Machines Sabotaged . | . . . . . . . . . . . . . . . . . . . . Overloaded Fab Kills . | . . . . . . . . . . . . . . . . . . . . Hacking | -11 -10 -10 -8 -7 -7 -7 -5 -5 -5 -4 -4 -4 -4 -3 -3 -2 -2 -1 -1 --------- Run | Yrd Mat Sub Mat Fac Sto Rec Fac Upp War Pro Fac Arm Lab Res Qua Res Tes Acc Com Machines Accessed 79 | . . 1 2 8 8 9 3 . 2 1 4 9 1 5 7 1 8 5 5 Terminals 45 | . . . 2 2 6 1 2 . . 1 2 6 . 3 6 . 6 3 5 Fabricators 9 | . . . . 3 . . 1 . . . . 3 . 1 . . . 1 . Repair Stations . | . . . . . . . . . . . . . . . . . . . . Recycling Units 9 | . . . . . 2 7 . . . . . . . . . . . . . Scanalyzers 5 | . . . . 2 . . . . . . 1 . . . 1 . 1 . . Garrison Access 6 | . . . . 1 . . . . . . 1 . . 1 . 1 1 1 . Total Hacks 159 | . . 4 9 21 15 13 9 . 3 1 7 16 1 11 14 2 16 7 10 Successful 98 | . . 4 5 16 10 11 7 . 3 1 3 9 1 4 9 1 7 3 4 Failed 61 | . . . 4 5 5 2 2 . . . 4 7 . 7 5 1 9 4 6 Catastrophic 4 | . . . . . . . . . . . 1 1 . . 1 . . 1 . Database Lockouts . | . . . . . . . . . . . . . . . . . . . . Manual 66 | . . . 9 5 6 7 5 . . . 5 9 . 3 2 . 9 3 3 Terminals 102 | . . . 9 8 13 3 7 . . 1 5 13 . 5 12 . 12 4 10 Fabricators 15 | . . . . 6 . . 2 . . . . 3 . 3 . . . 1 . Repair Stations . | . . . . . . . . . . . . . . . . . . . . Recycling Units 9 | . . . . . 2 7 . . . . . . . . . . . . . Scanalyzers 12 | . . . . 6 . . . . . . 1 . . . 2 . 3 . . Garrison Access 10 | . . . . 1 . . . . . . 1 . . 3 . 2 1 2 . Terminal Hacks 47 | . . 4 3 2 6 4 4 . 3 1 . 4 1 3 5 . 1 2 4 Record 10 | . . 4 . . . 1 . . 2 1 . . 1 . 1 . . . . Part Schematic 1 | . . . . . . . . . . . . . . 1 . . . . . Robot Analysis 1 | . . . . . . . . . . . . . . . . . . . 1 Prototype ID Bank 7 | . . . 3 . . 1 1 . . . . 1 . . 1 . . . . Open Door 5 | . . . . . 3 . . . 1 . . . . . 1 . . . . Level Access Points 1 | . . . . . . . . . . . . . . 1 . . . . . Branch Access Points 5 | . . . . 1 1 . 1 . . . . . . 1 . . . 1 . Emergency Access Points 1 | . . . . . . . . . . . . . . . . . . . 1 Machine Index 1 | . . . . . . . . . . . . . . . 1 . . . . Terminal Index 2 | . . . . . . . . . . . . . . . . . 1 . 1 Alert Level 1 | . . . . . . . . . . . . . . . . . . . 1 Unreport Threat 1 | . . . . . . . . . . . . 1 . . . . . . . Locate Traps 5 | . . . . . 2 . 1 . . . . . . . 1 . . 1 . Recall Extermination 1 | . . . . . . . 1 . . . . . . . . . . . . Zone Layout 3 | . . . . 1 . . . . . . . 2 . . . . . . . Release Object 2 | . . . . . . 2 . . . . . . . . . . . . . Fabricator Hacks 8 | . . . . 5 . . 2 . . . . 1 . . . . . . . Network Status 2 | . . . . 1 . . . . . . . 1 . . . . . . . Load Schematic 3 | . . . . 2 . . 1 . . . . . . . . . . . . Build 3 | . . . . 2 . . 1 . . . . . . . . . . . . Repair Station Hacks . | . . . . . . . . . . . . . . . . . . . . Recycling Unit Hacks . | . . . . . . . . . . . . . . . . . . . . Scanalyzer 8 | . . . . 5 . . . . . . . . . . 2 . 1 . . Insert Component 7 | . . . . 4 . . . . . . . . . . 2 . 1 . . Analyze 1 | . . . . 1 . . . . . . . . . . . . . . . Garrison Access Hacks 4 | . . . . 1 . . . . . . 1 . . . . 1 1 . . Seal Access 4 | . . . . 1 . . . . . . 1 . . . . 1 1 . . Unauthorized Hacks 31 | . . . 2 3 4 7 1 . . . 2 4 . 1 2 . 4 1 . Terminals 20 | . . . 2 3 2 . 1 . . . 2 3 . 1 2 . 4 . . Botnet 19 | . . . 2 2 2 . 1 . . . 2 3 . 1 2 . 4 . . Operators 1 | . . . . 1 . . . . . . . . . . . . . . . Fabricators 2 | . . . . . . . . . . . . 1 . . . . . 1 . Fabnet 2 | . . . . . . . . . . . . 1 . . . . . 1 . Repair Stations . | . . . . . . . . . . . . . . . . . . . . Recycling Units 9 | . . . . . 2 7 . . . . . . . . . . . . . Tunnel 9 | . . . . . 2 7 . . . . . . . . . . . . . Scanalyzers . | . . . . . . . . . . . . . . . . . . . . Garrison Access . | . . . . . . . . . . . . . . . . . . . . Data Cores Recovered 4 | . . . 1 . . . . . . . . . . . 1 . 1 . 1 Used 2 | . . . . . . . . . . . . . . . 1 . . . 1 Hacking Detections 54 | . . . 2 6 5 1 1 . . . 3 8 . 5 4 1 7 4 7 Full Trace Events 7 | . . . . 4 . . . . . . . . . 2 . . . 1 . Feedback Events 4 | . . . . 4 . . . . . . . . . . . . . . . Corruption 3 | . . . . 3 . . . . . . . . . . . . . . . Hackware Fried 1 | . . . . 1 . . . . . . . . . . . . . . . Feedback Blocked . | . . . . . . . . . . . . . . . . . . . . Robot Schematics Acquired . | . . . . . . . . . . . . . . . . . . . . Robots Built . | . . . . . . . . . . . . . . . . . . . . Authchips . | . . . . . . . . . . . . . . . . . . . . Time . | . . . . . . . . . . . . . . . . . . . . Total Robot Build Rating . | . . . . . . . . . . . . . . . . . . . . Part Schematics Acquired 2 | . . . . 1 . . . . . . . . . 1 . . . . . Parts Built 3 | . . . . 2 . . 1 . . . . . . . . . . . . Authchips . | . . . . . . . . . . . . . . . . . . . . Time 134 | . . . . 76 . . 58 . . . . . . . . . . . . Total Part Build Rating 9 | . . . . 6 . . 3 . . . . . . . . . . . . Parts Repaired . | . . . . . . . . . . . . . . . . . . . . Time . | . . . . . . . . . . . . . . . . . . . . Parts Recycled . | . . . . . . . . . . . . . . . . . . . . Recycled Matter . | . . . . . . . . . . . . . . . . . . . . Retrieved Matter . | . . . . . . . . . . . . . . . . . . . . Retrieved Components . | . . . . . . . . . . . . . . . . . . . . Parts Scanalyzed 2 | . . . . 2 . . . . . . . . . . . . . . . Part Schematics Acquired 1 | . . . . 1 . . . . . . . . . . . . . . . Parts Damaged . | . . . . . . . . . . . . . . . . . . . . Bothacking | -11 -10 -10 -8 -7 -7 -7 -5 -5 -5 -4 -4 -4 -4 -3 -3 -2 -2 -1 -1 ------------ Run | Yrd Mat Sub Mat Fac Sto Rec Fac Upp War Pro Fac Arm Lab Res Qua Res Tes Acc Com Used RIF Installer . | . . . . . . . . . . . . . . . . . . . . Robots Hacked 2 | . . . . . . . . . . . . . . . 2 . . . . Non-combat . | . . . . . . . . . . . . . . . . . . . . Combat 2 | . . . . . . . . . . . . . . . 2 . . . . Robot Hacks Applied . | . . . . . . . . . . . . . . . . . . . . Relay Couplers Released 1 | . . . . . . . . . . . . . . . . . . 1 . Machine Destruction 1 | . . . . . . . . . . . . . . . . . . 1 . Fabnet Peak Effective % 3 | . . . . . . . . . . . . . . 3 3 1 1 . . Autooverrided 2 | . . . . . . . . . . . . . . . 2 . . . . Robots Rewired 28 | . . . . . . 19 . 2 1 . 1 4 . . . . 1 . . Allies Hacked 3 | . . . . . . 1 . . . . . 2 . . . . . . . Hacks Repelled . | . . . . . . . . . . . . . . . . . . . . Allies | -11 -10 -10 -8 -7 -7 -7 -5 -5 -5 -4 -4 -4 -4 -3 -3 -2 -2 -1 -1 -------- Run | Yrd Mat Sub Mat Fac Sto Rec Fac Upp War Pro Fac Arm Lab Res Qua Res Tes Acc Com Total Allies 30 | . . . . . . 19 . 2 1 . 1 4 . . 2 . 1 . . Largest Group 16 | . . . . . . 16 16 2 3 1 1 4 . . 1 . 1 1 . Highest-Rated Group 325 | . . . . . . 325 325 59 175 116 47 200 . . 59 . 146 146 . Highest-Rated Ally 146 | . . . . . . 40 40 30 116 116 47 50 . . 59 . 146 146 . Total Orders . | . . . . . . . . . . . . . . . . . . . . Ally Attacks 98 | . . . . . . 11 25 4 . 4 6 39 . . . . . 9 . Total Damage 3491 | . . . . . . 294 919 38 . 203 134 1255 . . . . . 648 . Kills 23 | . . . . . . 3 7 1 . 2 1 7 . . . . . 2 . Allies Corrupted 1 | . . . . . . . . . . . . 1 . . . . . . . Allies Melted 2 | . . . . . . . . . 1 . . . . . . 1 . . . Intel | -11 -10 -10 -8 -7 -7 -7 -5 -5 -5 -4 -4 -4 -4 -3 -3 -2 -2 -1 -1 ------- Run | Yrd Mat Sub Mat Fac Sto Rec Fac Upp War Pro Fac Arm Lab Res Qua Res Tes Acc Com Active Infowar (turns) 11789 | 55 190 919 283 . . 159 750 518 615 539 782 869 409 489 498 1190 931 680 1913 Optics 815 | . . 22 283 . . 159 349 . . . . . . . . 2 . . . IFF 544 | . . . . . . . . . . . . 544 . . . . . . . Terrain 1142 | 55 190 897 . . . . . . . . . . . . . . . . . Jamming 9834 | . . . . . . . 401 518 615 539 782 869 409 489 498 1190 931 680 1913 Robot Analysis Total 1 | . . . . . . . . . . . . . . . . . . . 1 Derelict Logs Recovered 3 | . . 2 . . . . . . . 1 . . . . . . . . . Drone Launches . | . . . . . . . . . . . . . . . . . . . . Drone Recoveries . | . . . . . . . . . . . . . . . . . . . . Exploration | -11 -10 -10 -8 -7 -7 -7 -5 -5 -5 -4 -4 -4 -4 -3 -3 -2 -2 -1 -1 ------------- Run | Yrd Mat Sub Mat Fac Sto Rec Fac Upp War Pro Fac Arm Lab Res Qua Res Tes Acc Com Turns Passed 15289 | 90 190 920 576 430 530 1621 1456 518 651 544 784 869 409 489 498 1190 931 680 1913 Spaces Moved 12490 | 54 145 555 337 782 608 884 1092 423 839 514 716 998 245 461 410 1143 812 523 949 Core 22 | 7 . . . . . . . . . . . . . . 6 . 9 . . Treads 1321 | . . . . . 66 884 371 . . . . . . . . . . . . Legs 6737 | 47 145 555 310 . . . 6 181 839 514 716 998 245 401 . . 308 523 949 Wheels . | . . . . . . . . . . . . . . . . . . . . Hover 2102 | . . . . . . . . . . . . . . 60 404 1143 495 . . Flight 2308 | . . . 27 782 542 . 715 242 . . . . . . . . . . . Fastest Speed 26 | 50 120 120 26 26 26 160 58 58 58 58 58 58 58 58 90 90 90 95 95 Average Speed 84 | 110 120 120 114 26 40 160 102 82 58 58 58 58 58 98 94 90 95 95 95 Slowest Speed 400 | 120 120 120 190 26 160 160 179 132 58 58 58 58 58 139 400 90 400 95 95 Overloaded Moves . | . . . . . . . . . . . . . . . . . . . . Propulsion Burnouts . | . . . . . . . . . . . . . . . . . . . . Robots Hopped 5 | . . . . . 4 . . 1 . . . . . . . . . . . Potential Cave-ins . | . . . . . . . . . . . . . . . . . . . . Cave-ins Triggered . | . . . . . . . . . . . . . . . . . . . . Exploration Rate (%) 45 | 4 42 44 30 21 75 91 30 42 83 55 20 60 98 11 34 33 90 19 30 Regions Visited 19 Branch Regions 11 Pre-discovered Areas 11 | . . 2 . . 2 7 . . . . . . . . . . . . . Known Exits Taken 18 | 1 1 1 1 1 1 1 1 . 1 1 1 1 1 1 1 1 1 1 . Unknown Exits Taken 1 | . . . . . . . . 1 . . . . . . . . . . . Scrap Searched 4 | . . . . . . . . 1 . 3 . . . . . . . . . Spaces Dug 905 | . . . . 22 . 1 . 1 . . 1 4 1 . 1 4 . 2 868 Terrain Destroyed 997 | . . . . 44 . 1 . 2 15 . 23 15 5 . 1 6 4 7 874 Melee 23 | . . . . 22 . 1 . . . . . . . . . . . . . Projectile 66 | . . . . 2 . . . 2 . . 14 15 5 . 1 6 4 7 10 AOE 908 | . . . . 20 . . . . 15 . 9 . . . . . . . 864 Terrain Rammed . | . . . . . . . . . . . . . . . . . . . . Walls Destroyed . | . . . . . . . . . . . . . . . . . . . . Machines Disabled . | . . . . . . . . . . . . . . . . . . . . Actions | -11 -10 -10 -8 -7 -7 -7 -5 -5 -5 -4 -4 -4 -4 -3 -3 -2 -2 -1 -1 --------- Run | Yrd Mat Sub Mat Fac Sto Rec Fac Upp War Pro Fac Arm Lab Res Qua Res Tes Acc Com Total 16034 | 70 157 703 462 941 795 1073 1316 529 972 753 1007 1232 501 491 502 1317 953 655 1605 Wait 1029 | . 8 16 17 51 23 80 41 41 50 222 47 52 198 9 22 30 38 49 35 Move 12460 | 53 144 554 336 781 600 883 1091 420 838 513 715 996 244 459 409 1142 811 522 949 Hop 4 | . . . . . 3 . . 1 . . . . . . . . . . . Pick Up 119 | 4 1 8 7 9 8 2 19 2 8 2 8 9 3 3 5 7 2 . 12 Fast Attach 89 | 7 . 6 22 4 13 3 6 . 5 . 1 5 5 1 1 7 3 . . Attach 31 | . . . 2 1 5 . 2 . 3 2 4 2 2 . 1 4 1 . 2 Detach 43 | . . 1 5 1 4 3 4 1 5 1 4 3 4 . 1 5 1 . . Swap 17 | . 1 1 2 3 . . 1 . . 2 3 1 2 . . 1 . . . Drop 170 | . 1 14 20 10 17 7 24 6 8 3 6 11 8 3 4 10 6 . 12 Fire 1373 | 6 2 72 43 20 58 19 102 39 31 8 163 104 24 6 41 85 71 59 420 Melee 63 | . . . . 36 23 1 . . 3 . . . . . . . . . . Ram 1 | . . . . . . . . . . . . . . . . . 1 . . Kick 13 | . . . 1 . . . . . . . 3 . . 7 . . . 2 . Crush . | . . . . . . . . . . . . . . . . . . . . Escape Stasis 20 | . . . . 18 . . . . . . . 1 . 1 . . . . . Rewire 104 | . . . . . . 67 . 5 3 . 4 22 . . . . 3 . . Trap . | . . . . . . . . . . . . . . . . . . . . Miscellaneous 498 | . . 31 7 7 41 8 26 14 18 . 49 26 11 2 18 26 16 23 175 Route ------- -11/Scrapyard -10/Materials (discovered 2 exits: *Mat / *Sub) -10/Subcaves (discovered 3 exits: *Mat x2 / *Rec) -8/Materials -7/Factory (discovered 4 exits: *Sto x2 / Low x2) -7/Storage -7/Recycling -5/Factory (discovered 3 exits: *Fac / *Upp x2) -5/Upper Caves -5/Warlord -4/Proximity Caves -4/Factory -4/Armory (discovered 2 exits: *Res / *Lab) -4/Lab -3/Research (discovered 5 exits: Res x3 / *Qua x2) -3/Quarantine -2/Research (discovered 2 exits: *Acc / *Tes) -2/Testing -1/Access -1/Command History --------- Turn | Location | Event 1 | -11/Scrapyard | Upgraded with Propulsion slot (x1) 1 | -11/Scrapyard | Upgraded with Utility slot (x1) 1 | -11/Scrapyard | Upgraded with Weapon slot (x1) 12 | -11/Scrapyard | Identified exit to Materials 12 | -11/Scrapyard | Discovered exit to Materials (range 16) 91 | -11/Scrapyard | Entered Materials 92 | -10/Materials | Met a group of wandering Federalists 191 | -10/Materials | Identified exit to Materials 191 | -10/Materials | Discovered exit to Materials (range 7) 264 | -10/Materials | Identified exit to Subcaves 264 | -10/Materials | Discovered exit to Subcaves (range 9) 281 | -10/Materials | Entered Subcaves 281 | -10/Subcaves | Accompanied by 4 allies 282 | -10/Subcaves | Continued accompanying wandering Federalists (5) 311 | -10/Subcaves | Ambushed by Subdweller buried in earth 314 | -10/Subcaves | Ambushed by Subdweller buried in earth 315 | -10/Subcaves | Build established: Hacker-Mutant 317 | -10/Subcaves | Ambushed by Subdweller buried in earth 342 | -10/Subcaves | Lost 5 allies 345 | -10/Subcaves | Core integrity fell below 50% 524 | -10/Subcaves | Ambushed by Subdweller buried in earth 606 | -10/Subcaves | Shifting Twisted Machinery released Sub. Laser 669 | -10/Subcaves | Shifting Twisted Machinery released Riot Gun 669 | -10/Subcaves | Identified exit to Recycling 669 | -10/Subcaves | Discovered exit to Recycling (range 15) 684 | -10/Subcaves | Learned location of Zion (-7) 811 | -10/Subcaves | Learned location of Storage (-7) 1051 | -10/Subcaves | Visited Clippyterm 1055 | -10/Subcaves | Identified exit to Materials 1081 | -10/Subcaves | A swath of the cavern ceiling suddenly collapsed 1093 | -10/Subcaves | A swath of the cavern ceiling suddenly collapsed 1099 | -10/Subcaves | Shifting Twisted Machinery released Sub. Optics 1201 | -10/Subcaves | Entered Materials 1202 | -8/Materials | Core integrity fell below 50% 1203 | -8/Materials | Reached level 2 1203 | -8/Materials | Reached level 3 1203 | -8/Materials | Reached level 4 1203 | -8/Materials | Reached level 5 1203 | -8/Materials | Reached level 6 1204 | -8/Materials | Upgraded with Power slot (x1) 1204 | -8/Materials | Upgraded with Utility slot (x2) 1205 | -8/Materials | Upgraded with Propulsion slot (x2) 1568 | -8/Materials | Reached level 7 1727 | -8/Materials | Identified exit to Factory 1727 | -8/Materials | Discovered exit to Factory (range 10) 1777 | -8/Materials | Entered Factory 1779 | -7/Factory | Reached level 8 1779 | -7/Factory | Reached level 9 1791 | -7/Factory | Identified exit to Storage 1791 | -7/Factory | Identified exit to Lower Caves 2036 | -7/Factory | Build established: Hacker-Sprinter 2077 | -7/Factory | Fabricated Enh. Autogun (x1) 2104 | -7/Factory | Hacking Suite fried by hacking feedback 2142 | -7/Factory | Fabricated Enh. Autogun? 2149 | -7/Factory | Reached level 10 2207 | -7/Factory | Entered Storage 2240 | -7/Storage | Core integrity fell below 50% 2285 | -7/Storage | Upgraded with Weapon slot (x1) 2286 | -7/Storage | Upgraded with Weapon slot (x1) 2325 | -7/Storage | Reached level 11 2498 | -7/Storage | Reached level 12 2733 | -7/Storage | Used back door to open Recycling access 2737 | -7/Storage | Entered Recycling 2739 | -7/Recycling | Reached level 13 2883 | -7/Recycling | P-60 Hacker assimilated allied Angel 4b 2883 | -7/Recycling | Reached level 14 2911 | -7/Recycling | Destroyed 7 combat bots 3112 | -7/Recycling | Build established: Commander-Tank 3157 | -7/Recycling | Identified exit to Factory 3157 | -7/Recycling | Discovered exit to Factory (range 15) 3792 | -7/Recycling | Upgraded with Utility slot (x2) 3792 | -7/Recycling | Found Prototype Device 3792 | -7/Recycling | Identified Scrap Engine 4358 | -7/Recycling | Entered Factory 4358 | -5/Factory | Accompanied by 16 allies 4360 | -5/Factory | Reached level 15 4360 | -5/Factory | Reached level 16 4602 | -5/Factory | Lost 5 allies 4660 | -5/Factory | Reached level 17 4681 | -5/Factory | Lost 8 allies 4800 | -5/Factory | Lost 3 allies 4843 | -5/Factory | Upgraded with Utility slot (x1) 4924 | -5/Factory | Build established: Hacker-Gunner 5306 | -5/Factory | Identified exit to Upper Caves 5386 | -5/Factory | Reached level 18 5413 | -5/Factory | Upgraded with Utility slot (x1) 5581 | -5/Factory | Identified exit to Factory 5581 | -5/Factory | Discovered exit to Factory (range 8) 5637 | -5/Factory | Fabricated Enh. Autogun? 5814 | -5/Factory | Entered Upper Caves 5824 | -5/Upper Caves | Attracted the attention of an 0b10 outpost 5874 | -5/Upper Caves | Reached level 19 5928 | -5/Upper Caves | Destroyed 9 combat bots 6116 | -5/Upper Caves | Build established: Hauler-Mutant 6283 | -5/Upper Caves | A Derelict revealed a hidden shortcut to "reach the base" 6332 | -5/Upper Caves | Entered Warlord 6332 | -5/Warlord | Accompanied by 2 allies 6334 | -5/Warlord | Reached level 20 6430 | -5/Warlord | Found Prototype Special Weapon 6430 | -5/Warlord | Identified RU-N14's Throwing Claymores v3 6432 | -5/Warlord | Found RU-N14's Throwing Claymores v3 6434 | -5/Warlord | Found RU-N14's Throwing Claymores v3 6436 | -5/Warlord | Found RU-N14's Throwing Claymores v3 6481 | -5/Warlord | Build established: Hauler-Construct 6497 | -5/Warlord | Met Warlord 6522 | -5/Warlord | Warlord's base attacked by MAIN.C 6610 | -5/Warlord | Upgraded with Utility slot (x1) 6610 | -5/Warlord | Found Prototype Processor 6610 | -5/Warlord | Identified Exp. Armor Integrity Analyzer 6613 | -5/Warlord | Found Prototype Device 6613 | -5/Warlord | Identified Thermal Barrier 6676 | -5/Warlord | Spotted B-75 Beast 6709 | -5/Warlord | Spotted B-86 Titan 6719 | -5/Warlord | Destroyed B-86 Titan 6734 | -5/Warlord | Warlord forces counterattacked 6804 | -5/Warlord | Found Prototype Energy Gun 6807 | -5/Warlord | Found Prototype Energy Gun 6873 | -5/Warlord | Spotted Striker 6875 | -5/Warlord | Spotted Executioner 6878 | -5/Warlord | Destroyed Striker 6901 | -5/Warlord | Spotted Executioner 6913 | -5/Warlord | Identified exit to Proximity Caves 6913 | -5/Warlord | Discovered exit to Proximity Caves (range 15) 6922 | -5/Warlord | Spotted B-75 Beast 6922 | -5/Warlord | Spotted Striker 6922 | -5/Warlord | Spotted B-86 Titan 6942 | -5/Warlord | Reached level 21 6942 | -5/Warlord | Destroyed Striker 6953 | -5/Warlord | Rewired B-86 Titan 6969 | -5/Warlord | Lost 10 allies 6983 | -5/Warlord | Entered Proximity Caves 6983 | -4/Proximity Caves | Accompanied by 1 ally 7217 | -4/Proximity Caves | Discovered exit to Factory (range 15) 7527 | -4/Proximity Caves | Entered Factory 7528 | -4/Factory | Identified exit to Armory 7529 | -4/Factory | Reached level 22 7529 | -4/Factory | Upgraded with Utility slot (x1) 7570 | -4/Factory | Reached level 23 7601 | -4/Factory | Identified Vortex Rail 7603 | -4/Factory | Identified Vortex Rifle 7814 | -4/Factory | Build established: Hauler-Gunner 8030 | -4/Factory | Reached level 24 8311 | -4/Factory | Entered Armory 8501 | -4/Armory | Build established: Hauler-Construct 8599 | -4/Armory | Reached level 25 8610 | -4/Armory | Upgraded with Utility slot (x1) 8934 | -4/Armory | Identified exit to Research 8934 | -4/Armory | Discovered exit to Research (range 3) 9061 | -4/Armory | First assault squad dispatched 9177 | -4/Armory | Identified exit to Lab 9177 | -4/Armory | Discovered exit to Lab (range 4) 9180 | -4/Armory | Entered Lab 9180 | -4/Lab | Discovered exit to Research (range 9) 9182 | -4/Lab | Reached level 26 9187 | -4/Lab | Unable to decrypt terminal 9188 | -4/Lab | Detected for breach 9191 | -4/Lab | Gained access to the hidden lab's interior 9197 | -4/Lab | Confronted by A5 9210 | -4/Lab | Destroyed A5 9238 | -4/Lab | Found Alien Artifact 9244 | -4/Lab | Found Alien Artifact 9244 | -4/Lab | Identified Integrated Reactor 9244 | -4/Lab | Installed Integrated Reactor, increased core energy generation (+10) 9252 | -4/Lab | Found Alien Artifact 9252 | -4/Lab | Identified Core Regenerator 9252 | -4/Lab | Used Core Regenerator, restored core integrity (+0) 9270 | -4/Lab | Unable to decrypt terminal 9285 | -4/Lab | Found Prototype Special Weapon 9285 | -4/Lab | Identified Gui. Remote Datajack 9318 | -4/Lab | Found Prototype Energy Gun 9318 | -4/Lab | Identified Hyp. EM Gauss Rifle 9321 | -4/Lab | Found Prototype Energy Cannon 9321 | -4/Lab | Identified Warp Cannon 9516 | -4/Lab | Found Prototype Protection 9518 | -4/Lab | Identified Med. Regenerative Plating 9524 | -4/Lab | Found Prototype Hackware 9552 | -4/Lab | Unable to decrypt terminal 9569 | -4/Lab | Disabled Active System Cloaker 9575 | -4/Lab | MAIN.C forces arrive to investigate 9589 | -4/Lab | Entered Research 9591 | -3/Research | Reached level 27 9604 | -3/Research | Identified exit to Research 9650 | -3/Research | Spotted B-86 Titan 9657 | -3/Research | Destroyed B-86 Titan 9669 | -3/Research | Identified exit to Quarantine 9873 | -3/Research | Found Quantum Capacitor 10078 | -3/Research | Entered Quarantine 10080 | -3/Quarantine | Reached level 28 10173 | -3/Quarantine | Identified Deep Network Scanner 10173 | -3/Quarantine | Identified Transdimensional Reconstructor 10215 | -3/Quarantine | Discovered exit to Research (range 15) 10259 | -3/Quarantine | Spotted Alpha 7 10266 | -3/Quarantine | Destroyed Alpha 7 10292 | -3/Quarantine | Found Alien Launcher 10292 | -3/Quarantine | Identified Sigix Terminator 10432 | -3/Quarantine | Intercept squad dispatched 10435 | -3/Quarantine | Found Alien Artifact 10449 | -3/Quarantine | Spotted Tracker 10457 | -3/Quarantine | Spotted Combat Programmer 10469 | -3/Quarantine | Destroyed Tracker 10481 | -3/Quarantine | Destroyed Combat Programmer 10576 | -3/Quarantine | Entered Research 10576 | -2/Research | Warlord forces began assault on 0b10 10578 | -2/Research | Reached level 29 10578 | -2/Research | Reached level 30 10578 | -2/Research | Upgraded with Utility slot (x1) 10686 | -2/Research | Research machine network offline 10744 | -2/Research | Met up with Warlord 10853 | -2/Research | Spotted B-90 Cyclops 10930 | -2/Research | Build established: Hauler-Mutant 11003 | -2/Research | Borebot progress halted 11005 | -2/Research | Reached level 31 11005 | -2/Research | Destroyed B-90 Cyclops 11054 | -2/Research | Spotted Striker 11054 | -2/Research | Spotted Executioner 11057 | -2/Research | Destroyed Executioner 11058 | -2/Research | Destroyed Striker 11090 | -2/Research | Found Corrupted Prototype Processor 11090 | -2/Research | Identified Exp. Targeting Computer 11095 | -2/Research | Destroyed 7 combat bots 11097 | -2/Research | Found Prototype Device 11097 | -2/Research | Identified Adv. Kinecellerator 11211 | -2/Research | Spotted Tracker 11214 | -2/Research | Destroyed Tracker 11256 | -2/Research | Spotted Combat Programmer 11526 | -2/Research | Identified exit to Access 11526 | -2/Research | Discovered exit to Access (range 8) 11527 | -2/Research | Met DD-05H 11576 | -2/Research | Spotted Striker 11576 | -2/Research | Warlord invited to help at Command 11576 | -2/Research | Given Cave Seal Controls access code 11579 | -2/Research | Spotted Executioner 11579 | -2/Research | Spotted Striker 11585 | -2/Research | Destroyed Executioner 11586 | -2/Research | Destroyed Striker 11615 | -2/Research | Lost 3 allies 11628 | -2/Research | Spotted Executioner 11630 | -2/Research | Destroyed Executioner 11651 | -2/Research | Found Prototype Processor 11651 | -2/Research | Identified Exp. Core Analyzer 11655 | -2/Research | Identified Subatomic Replicator 11655 | -2/Research | Used Subatomic Replicator to replicate Vortex Rifle 11756 | -2/Research | Identified exit to Testing 11756 | -2/Research | Discovered exit to Testing (range 5) 11766 | -2/Research | Entered Testing 11768 | -2/Testing | Reached level 32 11768 | -2/Testing | Upgraded with Utility slot (x1) 11782 | -2/Testing | Found Prototype Device 11782 | -2/Testing | Identified AEGIS Remote Shield 11868 | -2/Testing | Found Prototype Device 11868 | -2/Testing | Identified Exp. Hardlight Generator 11948 | -2/Testing | Build established: Hauler-Gunner 12079 | -2/Testing | Intercept squad dispatched 12086 | -2/Testing | Spotted Tracker 12087 | -2/Testing | Spotted Tracker 12087 | -2/Testing | Destroyed Tracker 12090 | -2/Testing | Destroyed Tracker 12104 | -2/Testing | Spotted Combat Programmer 12105 | -2/Testing | Destroyed Combat Programmer 12107 | -2/Testing | Spotted Combat Programmer 12109 | -2/Testing | Destroyed Combat Programmer 12467 | -2/Testing | Found Prototype Ballistic Cannon 12588 | -2/Testing | Identified Omega Cannon 12620 | -2/Testing | Build established: Hauler-Construct 12663 | -2/Testing | Rewired PG-459S08IBJO 12668 | -2/Testing | Discovered exit to Access (range 11) 12697 | -2/Testing | Entered Access 12697 | -1/Access | Accompanied by 1 ally 12699 | -1/Access | Reached level 33 12767 | -1/Access | Reached level 34 12959 | -1/Access | Destroyed 12 combat bots 13002 | -1/Access | Spotted O2-SKS(H) 13008 | -1/Access | Destroyed O2-SKS(H) 13255 | -1/Access | Identified exit to Command 13377 | -1/Access | Entered Command 13379 | -1/Command | Reached level 35 13670 | -1/Command | Upgraded with Weapon slot (x1) 13674 | -1/Command | Fired Sigix Terminator 13674 | -1/Command | Reached level 36 13674 | -1/Command | High security lockdown imminent 13674 | -1/Command | MAIN.C activated Command garrisons 13674 | -1/Command | Reached level 37 13730 | -1/Command | Disengaged cave seal 13730 | -1/Command | Derelicts emerged from the dark tunnel 13730 | -1/Command | Welcomed Warlord to Command 13738 | -1/Command | Destroyed 146 combat bots 13768 | -1/Command | Reached level 38 13888 | -1/Command | P-80 Master assimilated allied 17-LDK(l) 13905 | -1/Command | Lost 7 allies 13936 | -1/Command | Core integrity fell below 50% 13979 | -1/Command | Build established: Hauler-Gunner 13988 | -1/Command | Warlord destroyed during the assault 14116 | -1/Command | Destroyed 55 combat bots 14178 | -1/Command | Disengaged cave seal 14195 | -1/Command | Destroyed 11 combat bots 14272 | -1/Command | Lost 16 allies 14294 | -1/Command | Destroyed 16 combat bots 14414 | -1/Command | Lost 4 allies 14432 | -1/Command | Spotted 4T-PYV(L) 14446 | -1/Command | Destroyed 4T-PYV(L) 14512 | -1/Command | Spotted B-99 Colossus 14538 | -1/Command | Spotted Executioner 14545 | -1/Command | Destroyed Executioner 14630 | -1/Command | Destroyed 54 combat bots 14654 | -1/Command | Spotted Executioner 14654 | -1/Command | Spotted Striker 14654 | -1/Command | Spotted Executioner 14654 | -1/Command | Spotted Executioner 14667 | -1/Command | Destroyed Striker 14669 | -1/Command | Destroyed Executioner 14673 | -1/Command | Destroyed Executioner 14688 | -1/Command | Destroyed Executioner 14706 | -1/Command | Destroyed B-99 Colossus 14715 | -1/Command | Found Exp. Core Analyzer 14730 | -1/Command | Destroyed 10 combat bots 14914 | -1/Command | Spotted Alpha 7 14937 | -1/Command | Destroyed 10 combat bots 14959 | -1/Command | Destroyed Alpha 7 15014 | -1/Command | Spotted Alpha 7 15026 | -1/Command | Spotted Striker 15027 | -1/Command | Destroyed 7 combat bots 15030 | -1/Command | Reached level 39 15030 | -1/Command | Destroyed Alpha 7 15032 | -1/Command | Destroyed Striker 15052 | -1/Command | Upgraded with Utility slot (x1) 15143 | -1/Command | Spotted B-99 Colossus 15144 | -1/Command | Spotted M Guard 15145 | -1/Command | Spotted M Guard 15147 | -1/Command | Spotted Combat Programmer 15148 | -1/Command | Spotted Combat Programmer 15176 | -1/Command | Destroyed B-99 Colossus 15188 | -1/Command | Core integrity fell below 20% 15211 | -1/Command | Destroyed Combat Programmer 15216 | -1/Command | Destroyed Combat Programmer 15290 | -1/Command | Destroyed by M Guard with Hellfire Missile Launcher Last Messages --------------- 15211_ Combat Programmer destroyed. 15213_ G-73 Enforcer destroyed. 15214_ EMDS Slug penetrates Wall. 15216_ Combat Programmer fries systems beyond repair. 15216_ Combat Programmer destroyed. 15225_ K-01 Serf collects debris. 15239_ Dropped Protomatter-41. 15240_ K-01 Serf collects debris. 15245_ Used Protomatter to restore core integrity (+123, depleted) 15246_ Dropped Protomatter-61. 15247_ K-01 Serf collects debris. 15249_ Acquired Protomatter-37. 15250_ K-01 Serf destroyed. 15257_ 3FGXUQY8T GTZ5TMIBMC/ITSTPC 15258_ Dropped Protomatter-37. 15262_ Used Protomatter to restore core integrity (+111, depleted) 15269_ The unstable cave ceiling collapses. 15285_ Adv. System Restoration Module destroyed. 15286_ < FMVA&DS,U63T3J603JFZZVHZJ<&#|R8E,AC92 15286_ The unstable cave ceiling collapses. Map ----- +----------------------------------------------------+ | [*[ =%[!![=#!=[=*#%[%[%|==####! !#####!# | | % !% ]*%[=*%![[![#[!*%%#!##??#=%%=%=##!# | | %=!* !%=%!%!!![%["#%#[=#?#####]!%%= ##=# | | =%%=*%%=!%!%==%[#####%![/]%%+!== ##[# | | # #%/[%[*/*!![=#???%#=######!!*!T ##!# | | # " # ]*!!!="%=###???!?*#????#!*/ % ## # | | ### # ##!!!!###=#?????#?=#????#/ ## # | | # #?########[!%*#?#/#???????%%????######### # | | ######????????#%%! #?# #???????##??????# =]%%! | | ###?????????????#%= %#?#!#???????????????# #####+# | | ????????????????#=!* ###%######??????????????? | | ????????????????#=[ # ! #?????????????# | | ????????????????#!% # !! #?????????????# | | ????????????????#/=!!# !! #?????????????# | | ????????????????#[% %#%! #?????????????###### | | ????????????????#[ !# #??????????????????? | | ???????????######%! # #??????????????????? | | ???????????# !!! # #??????????????????? | | ???????????# !%! %#! #??????????????????? | | ???????????# ! !]" #??????????????????? | | ???????????# %! #########??????????????????? | | ???????????# [% #?????????????????????????? | | ???????????# %% #??????????????##?????????? | | ???????????# =*= #########???? ????????? | | ???????????# Y ## ###? ????????? | | ???????????# % [Y= @ # # # ^ ?????????? | | ???????????# = ^ ^ "???????????? | | ???????????# ^^ ^"???????????? | | ???????????# ^ "???????????? | | ???????????# % ^ "???????????? | | ???????????+ %%s ^ ^ "???????????? | | ???????????####% # ^^^ ^ ^ "???????????? | | ???????######?# %# ! #### #!# # # ^ ????????? | | ???????# ### # #??#########? ???????? | | ???????# "" + #????????????? ??????????? | | ???????# T" # ! #??????????????#???????????? | | ???????# #### # #??????????????????????????? | | ???????## ##??# ######??????????????????????????? | | ????????# #####+#######?????????????????????????? | | ????????# # #???????????????????????? | | ????????# # #???????????????????????? | | ????????# # #???????????????????????? | | ????????# #! ! #???????????????????????? | | ????????# # +???????????????????????? | | ????????# # #???????????????????????? | | ????????# # #???????????????????????? | | ????????# # #???????????????????????? | | ????????# # #???????????????????????? | | ????????# + #???????????????????????? | | ????????# # #???????????????????????? | +----------------------------------------------------+ Best States ------------- Heat Dissipation 98 Coolant Potential 50 Energy Generation 71 Energy Capacity 632 Matter Stores 300 Matter Capacity 300 Sight Range 21 Terrain Scan Range 14 Terrain Scan Density 10 Jamming Range 16 Additional Mass Support 6 Armor Coverage 150 Resistance: KI 35 Resistance: TH 85 Resistance: EX 35 Resistance: EM 35 Resistance: I 35 Resistance: S 35 Resistance: P 35 Propulsion Shielding 33 Weapon Shielding 33 Weapon Cycling 20 Evasion (%) 77 Core Analysis 12 Armor Integrity Analysis 50 Recoil Reduction 4 Particle Charging 20 Offensive Hacking 32 Item Schematics ----------------- Enh. Autogun | -7/Factory | Scanalyzed Quantum Capacitor | -3/Research | Hacked Robot Schematics ------------------ None Fabricated ------------ Enh. Autogun | x1 | -7/Factory Enh. Autogun | x1 | -7/Factory Enh. Autogun | x1 | -5/Factory Repaired ---------- Nothing Alien Tech Used ----------------- Integrated Reactor Core Regenerator Sigix Terminator Subatomic Replicator Achievements -------------- Short-term Sacrifices WMD Challenges ------------ None RPGLIKE | -11 -10 -10 -8 -7 -7 -7 -5 -5 -5 -4 -4 -4 -4 -3 -3 -2 -2 -1 -1 --------- Run | Yrd Mat Sub Mat Fac Sto Rec Fac Upp War Pro Fac Arm Lab Res Qua Res Tes Acc Com Levels Raised 38 | . . . 6 3 2 2 4 1 2 . 3 1 1 1 1 3 1 2 5 XP Earned 63077 | 6000 . 1100 8289 4240 4154 2778 5617 2110 1766 1278 3720 2216 1456 1688 1395 4547 1419 2965 6339 XP Spent 62945 | 5250 . . 8450 100 5050 3100 9050 . 2600 . 3800 3200 2840 390 . 3670 3800 . 11645 Upgrades 71 | 8 . . 18 1 5 2 4 . 1 . 3 1 2 3 . 2 1 . 20 Power Slot 1 | . . . 1 . . . . . . . . . . . . . . . . Propulsion Slot 3 | 1 . . 2 . . . . . . . . . . . . . . . . Utility Slot 13 | 1 . . 2 . . 2 2 . 1 . 1 1 . . . 1 1 . 1 Weapon Slot 4 | 1 . . . . 2 . . . . . . . . . . . . . 1 Core Integrity 25 | . . . 8 . . . . . . . . . . . . . . . 17 Heat Dissipation 7 | . . . 2 . . . . . . . . . 1 3 . 1 . . . Energy Generation 2 | . . . 1 . 1 . . . . . . . . . . . . . . Mass Support 2 | . . . . 1 1 . . . . . . . . . . . . . . Inventory Capacity 12 | 5 . . 2 . 1 . 2 . . . . . 1 . . . . . 1 Ranged Accuracy 2 | . . . . . . . . . . . 2 . . . . . . . . Protomatter Created 8794 | . . 217 52 50 380 263 397 110 308 . 786 726 123 56 323 634 454 508 3407 Integrity Restored 9362 | . . 649 156 150 845 77 450 235 343 . 857 354 218 11 252 366 237 452 3710 Core 7060 | . . 601 156 150 687 48 359 180 227 . 485 224 104 8 219 238 167 340 2867 Parts 2302 | . . 48 . . 158 29 91 55 116 . 372 130 114 3 33 128 70 112 843 Protomatter Decayed 10361 | . 36 67 . . 51 324 570 26 654 90 319 727 . 52 57 3516 480 761 2631 Game ------ Seed SpliceGrapheneRay Manual? 0 Play Time 04:15:50 Cumulative 141.6 hours Start 2025.05.11 @ 20:21:55 End 2025.05.12 @ 18:05:56 Sessions 3 Manual Loads 0 Difficulty Explorer Special Mode Winter2019/RPGLIKE Game No. 30 Rogue 0 Adventurer 0 Explorer 30 Win Type - Total 13 Types 5/1/3/1/0/0/0/1/1/1 Lore% 62 Gallery% 54 Achievement% 73 Wizard Run 0 Options --------- Layout 0 ASCII 0 Keyboard 1 Movement Numpad Keybinds 0 Fullscreen 1 Font 18/SmallcapsGlow Map View 76x50 Zoom Use 0% Tactical HUD 1 Map Filters NONE Filters NONE Steam 1 RUN: e87d2fa6-fc7b-43a3-adb3-9fd88c7282f0